bitfinex-derivatives/quotes_ETHF0:USTF0_20251006
["timestamp","ask_amount","ask_price","bid_price","bid_amount"]
[1759763562524,1.12576245,4653.6,4653.5,0.70025]
[1759763562912,1.12576245,4653.6,4653.5,1.01675]
[1759763563315,1.64552989,4653.6,4653.5,1.01675]
[1759763563518,1.64552989,4653.6,4653.5,1.47015]
[1759763564114,1.64552989,4653.6,4653.5,0.38665]
[1759763568331,0.1902,4653.0,4652.9,0.3867]
[1759763568534,4.5128,4653.0,4652.9,0.3867]
[1759763569034,5.03137929,4653.0,4652.9,0.3867]
[1759763569934,5.03137929,4653.0,4652.9,0.7047]
[1759763570132,5.03137929,4653.0,4652.8,0.3867]
[1759763570327,5.03137929,4653.0,4652.7,1e-08]
[1759763570328,2.23607929,4652.9,4652.7,1e-08]
[1759763570634,1.1148,4651.8,4651.7,0.70260785]
[1759763570937,1.1148,4651.8,4651.7,0.3868]
[1759763571436,1.1148,4651.8,4651.7,1.01252043]
[1759763571629,1.1148,4651.8,4651.7,1.47032043]
[1759763571928,1.1148,4651.8,4651.7,1.01252043]
[1759763573223,1.1148,4651.8,4651.7,0.38882043]
[1759763573733,1.1148,4651.8,4651.7,1.01252043]
[1759763574633,1.1148,4651.8,4651.7,0.70682043]
[1759763574823,1.1148,4651.8,4651.7,0.38882043]
[1759763575228,1.1148,4651.8,4651.7,0.00202043]
[1759763575734,1.63262409,4651.8,4651.7,0.00202043]
[1759763576323,1.63262409,4651.8,4651.7,0.32002043]
[1759763576530,1.3308,4651.8,4651.7,1.08352043]
[1759763576725,1.1148,4651.8,4651.7,1.08352043]
[1759763576937,0.7899,4651.8,4651.7,1.08352043]
[1759763577736,1.1148,4651.8,4651.7,0.62572043]
[1759763578934,1.1148,4651.8,4651.7,1.08352043]
[1759763580536,0.8227,4652.5,4652.4,0.70474]
[1759763580734,1.3399232,4652.5,4652.4,0.38674]
[1759763581645,0.6325,4652.5,4652.4,1.46824]
[1759763581936,0.1902,4653.5,4652.4,1.46824]
[1759763581937,3.8403,4653.1,4653.0,1.46819]
[1759763582142,0.51694924,4653.1,4653.0,1.64949]
[1759763582542,4.32506245,4653.6,4653.5,0.38665]
[1759763582743,4.84071102,4653.6,4653.5,0.70465]
[1759763582941,4.84071102,4653.6,4653.5,1.16245]
[1759763583240,4.84071102,4653.6,4653.5,0.70465]
[1759763583440,4.84071102,4653.6,4653.5,1.16245]
[1759763584241,4.84071102,4653.6,4653.5,0.38665]
[1759763584441,4.84071102,4653.6,4653.5,1.16245]
[1759763585347,1.63291102,4653.6,4653.5,1.46815]
[1759763585846,1.63291102,4653.6,4653.5,0.38665]
[1759763586347,1.33326245,4653.6,4653.5,0.38665]
[1759763586548,1.1148,4652.6,4652.5,1.16253]
[1759763586746,1.1148,4652.6,4652.5,0.70473]
[1759763587340,1.1148,4652.6,4652.5,1.16253]
[1759763587944,0.3076,4652.6,4652.5,1.64953]
[1759763588344,3.8403,4653.4,4653.3,0.7758]
[1759763588544,3.8403,4653.4,4653.3,1.46816]
[1759763588748,3.5154,4653.4,4653.3,1.68416]
[1759763589150,3.8403,4653.4,4653.3,1.68416]
[1759763589950,3.5154,4653.4,4653.3,1.68416]
[1759763590553,3.8403,4653.4,4653.3,1.68416]
[1759763591050,4.3226,4653.4,4653.3,1.37846]
[1759763591654,3.8403,4653.4,4653.3,1.68416]
[1759763591848,3.5154,4653.4,4653.3,1.68416]
[1759763593250,3.8403,4653.4,4653.3,1.68416]
[1759763593453,0.31006245,4653.6,4653.5,1.19165]
[1759763593753,0.31006245,4653.6,4653.5,1.64945]
[1759763594950,0.38652,4655.1,4653.5,1.64945]
[1759763594951,3.2078,4654.8,4654.7,0.38655]
[1759763595157,4.35205799,4654.8,4654.7,1.46805]
[1759763595553,4.35205799,4654.8,4654.7,1.16235]
[1759763595954,4.35368242,4654.8,4654.7,1.16235]
[1759763596258,4.09732443,4654.8,4654.7,0.38655]
[1759763596949,4.31332443,4654.8,4654.7,0.38655]
[1759763597355,4.31332443,4654.8,4654.7,0.84435]
[1759763599356,4.31332443,4654.8,4654.7,0.38655]
[1759763599747,4.31332443,4654.8,4654.7,0.83565]
[1759763599959,4.09732443,4654.8,4654.7,0.83565]
[1759763600162,4.31332443,4654.8,4654.7,0.83565]
[1759763600967,4.31332443,4654.8,4654.7,0.38655]
[1759763601863,4.09732443,4654.8,4654.7,0.38655]
[1759763602057,3.20942443,4654.8,4654.7,1.15075]
[1759763602261,4.07862443,4654.8,4654.7,0.38655]
[1759763603266,4.29462443,4654.8,4654.7,0.83565]
[1759763604964,4.04282443,4654.8,4654.7,1.15075]
[1759763605365,4.29462443,4654.8,4654.7,1.15075]
[1759763606265,4.29462443,4654.8,4654.7,0.83565]
[1759763606767,4.04282443,4654.8,4654.7,1.15075]
[1759763606969,4.29462443,4654.8,4654.7,0.38655]
[1759763609072,4.07862443,4654.8,4654.7,0.38655]
[1759763609271,4.29462443,4654.8,4654.4,0.4491]
[1759763609477,0.8692,4654.5,4654.4,0.4491]
[1759763609772,0.8692,4654.4,4654.3,0.83568]
[1759763609979,0.6174,4654.4,4654.3,1.15078]
[1759763610267,3.82682443,4654.8,4654.7,1.45455]
[1759763610468,0.00162443,4654.8,4654.7,1.45455]
[1759763610669,1.53648974,4656.6,4654.7,1.45455]
[1759763610670,3.8252,4655.8,4655.7,1.45446]
[1759763610970,4.3352429,4655.8,4655.7,1.45446]
[1759763611376,3.7178429,4655.8,4655.7,1.45446]
[1759763611673,3.2078,4655.8,4655.7,1.45446]
[1759763611873,3.21025857,4655.8,4655.7,1.45705545]
[1759763612075,3.21025857,4655.8,4655.7,1.57098945]
[1759763612372,3.21025857,4655.8,4655.7,1.45705545]
[1759763612975,3.50795857,4655.8,4655.7,1.45705545]
[1759763613671,3.82765857,4655.8,4655.7,1.45705545]
[1759763614274,3.82765857,4655.8,4655.7,1.15325545]
[1759763614476,3.82765857,4655.8,4655.7,1.45705545]
[1759763615074,3.21025857,4655.8,4655.7,1.45705545]
[1759763615274,3.50795857,4655.8,4655.7,1.45705545]
[1759763615570,3.82765857,4655.8,4655.7,1.45705545]
[1759763616074,0.61985857,4655.8,4655.7,1.45705545]
[1759763616274,3.2078,4656.8,4656.7,0.3145]
[1759763616470,4.0435,4656.8,4656.7,1.14448]
[1759763616872,4.2897,4656.8,4656.7,1.14448]
[1759763617073,4.2897,4656.8,4656.7,0.82998]
[1759763617272,4.29150848,4656.8,4656.7,0.82998]
[1759763617471,0.62150848,4656.8,4656.7,1.45458]
[1759763617672,0.30750848,4656.8,4656.7,1.45458]
[1759763618175,0.00180848,4656.8,4656.7,1.45458]
[1759763618974,0.62150848,4656.8,4656.7,1.45458]
[1759763619975,4.07550848,4656.8,4656.7,0.38638]
[1759763620175,4.58112484,4656.8,4656.7,0.38638]
[1759763620777,0.8659,4656.3,4656.2,0.83002]
[1759763620975,4.0737,4656.3,4656.2,0.83002]
[1759763621777,3.8275,4656.3,4656.2,1.14452]
[1759763622479,3.8275,4656.3,4656.2,1.45462]
[1759763622875,3.2078,4656.3,4656.2,1.45462]
[1759763624981,0.00180848,4656.8,4656.7,1.45458]
[1759763625175,0.00180848,4656.8,4656.7,4.87738]
[1759763625377,0.50776145,4656.8,4656.7,4.87738]
[1759763625576,0.50776145,4656.8,4656.7,1.66958]
[1759763625772,0.81346145,4656.8,4656.7,1.66958]
[1759763625977,0.30750848,4656.8,4656.7,1.66958]
[1759763626583,0.00180848,4656.8,4656.7,1.66958]
[1759763627282,0.30750848,4656.8,4656.7,1.66958]
[1759763627682,0.00180848,4656.8,4656.7,1.66958]
[1759763629579,0.29730848,4656.8,4656.7,1.66958]
[1759763629779,0.00180848,4656.8,4656.7,1.66958]
[1759763633375,3.80070848,4656.8,4656.7,1.12578]
[1759763634485,3.80070848,4656.8,4656.7,1.44008]
[1759763635884,3.50510848,4656.8,4656.7,1.44008]
[1759763636080,0.00180848,4656.8,4656.7,1.44008]
[1759763637691,0.29730848,4656.8,4656.7,1.44008]
[1759763637888,0.00180848,4656.8,4656.7,1.44008]
[1759763638089,0.29730848,4656.8,4656.7,1.44008]
[1759763638587,0.59290848,4656.8,4656.7,1.44008]
[1759763640294,1.09625872,4656.8,4656.7,1.44008]
[1759763641896,0.80065872,4656.8,4656.7,1.44008]
[1759763642190,0.50515872,4656.8,4656.7,1.44008]
[1759763642392,3.5033,4657.5,4657.4,0.38632]
[1759763642596,3.7989,4657.5,4657.4,1.45332]
[1759763643394,3.800637,4657.5,4657.4,1.45332]
[1759763643991,4.015637,4657.5,4657.4,1.45332]
[1759763645090,3.505037,4657.5,4657.4,1.45332]
[1759763645297,0.512237,4657.5,4657.4,1.45332]
[1759763646092,0.807837,4657.5,4657.4,1.45332]
[1759763647387,0.512237,4657.5,4657.4,1.45332]
[1759763649399,0.001737,4657.5,4657.4,1.45332]
[1759763651404,0.592837,4657.5,4657.4,1.45332]
[1759763651603,0.297237,4657.5,4657.4,1.45332]
[1759763653006,0.001737,4657.5,4657.4,1.45332]
[1759763654409,0.50210692,4657.5,4657.4,1.45332]
[1759763657716,0.001737,4657.5,4657.4,1.45332]
[1759763658018,0.001737,4657.5,4657.4,42.25332]
[1759763658313,3.2078,4658.5,4658.4,0.3155]
[1759763658512,3.2078,4658.5,4658.4,1.086]
[1759763658513,3.70817375,4658.5,4658.4,1.086]
[1759763658912,3.70817375,4658.5,4658.4,1.47224]
[1759763659220,3.71022489,4658.5,4658.4,1.47224]
[1759763660323,4.00602489,4658.5,4658.4,1.47224]
[1759763662119,3.71022489,4658.5,4658.4,1.47224]
[1759763663124,3.20985114,4658.5,4658.4,1.47224]
[1759763663828,0.00205114,4658.5,4658.4,1.47224]
[1759763666124,0.00205114,4658.5,4658.4,1.68724]
[1759763674828,0.29785114,4658.5,4658.4,1.68724]
[1759763675029,0.00205114,4658.5,4658.4,1.68724]
[1759763679637,0.59985114,4658.5,4658.4,1.47224]
[1759763681034,0.81835114,4658.5,4658.4,1.47224]
[1759763681634,5.59985114,4658.5,4658.4,0.85274]
[1759763681836,5.81835114,4658.5,4658.4,0.85274]
[1759763682037,0.59985114,4658.5,4658.4,1.44114]
[1759763682233,0.4984422,4658.5,4658.4,1.44114]
[1759763683234,0.00205114,4658.5,4658.4,1.44114]
[1759763683436,0.81046358,4658.5,4658.4,1.44114]
[1759763683733,0.81047155,4658.5,4658.4,1.44114]
[1759763685031,1.09647155,4658.5,4658.4,1.44114]
[1759763685236,1.09647155,4658.5,4658.4,1.14554]
[1759763685641,1.09647155,4658.5,4658.4,1.44114]
[1759763686837,1.09647155,4658.5,4658.0,1.15487]
[1759763686838,0.38625,4658.3,4658.1,0.4693]
[1759763687037,0.5978,4657.7,4657.6,1.14841]
[1759763687439,0.5978,4657.7,4657.6,1.44401]
[1759763688339,1.09533839,4657.7,4657.6,1.44401]
[1759763688539,0.49753839,4657.7,4657.6,1.44401]
[1759763689448,3.2078,4658.1,4658.0,1.59837]
[1759763689750,3.2078,4658.1,4658.0,6.59837]
[1759763690045,0.215,4659.1,4658.4,1.41354]
[1759763690244,0.215,4659.1,4658.4,1.62854]
[1759763690744,0.6804,4659.1,4658.4,1.62854]
[1759763690941,3.2078,4658.6,4658.4,1.62854]
[1759763692745,1.07085114,4658.5,4658.4,1.41354]
[1759763693050,1.07085114,4658.5,4658.4,1.12924]
[1759763693051,1.56451629,4658.5,4658.4,1.12924]
[1759763693450,1.56451629,4658.5,4658.4,1.41354]
[1759763694551,1.56451629,4658.5,4658.4,0.38624]
[1759763694851,1.77951629,4658.5,4658.4,0.38624]
[1759763695049,1.0688,4658.2,4658.1,0.67366]
[1759763695242,1.77746515,4658.2,4658.1,0.38626]
[1759763695441,1.77746515,4658.2,4658.1,1.12926]
[1759763697553,1.77746515,4658.2,4658.1,1.41356]
[1759763697756,1.31206515,4658.2,4658.1,1.41356]
[1759763698753,1.77746515,4658.2,4658.1,1.41356]
[1759763700749,0.49366515,4658.2,4658.1,1.41356]
[1759763700954,0.70866515,4658.2,4658.1,1.41356]
[1759763701556,0.49366515,4658.2,4658.1,1.41356]
[1759763701757,0.00205114,4658.5,4658.4,0.95794]
[1759763701963,0.00205114,4658.5,4658.4,1.41354]
[1759763701964,0.49504462,4658.5,4658.4,1.41354]
[1759763702157,0.80744462,4658.5,4658.4,1.41354]
[1759763702359,1.56384462,4658.5,4658.4,1.41354]
[1759763704467,1.77884462,4658.5,4658.4,1.41354]
[1759763704760,1.31344462,4658.5,4658.4,1.41354]
[1759763704962,0.71004462,4658.5,4658.4,1.41354]
[1759763705460,0.49504462,4658.5,4658.4,1.41354]
[1759763707164,0.00205114,4658.5,4658.4,1.41354]
[1759763709064,3.2078,4659.1,4659.0,1.59829]
[1759763710155,3.20997205,4659.1,4659.0,1.60088812]
[1759763712864,0.00217205,4659.1,4659.0,1.60088812]
[1759763715762,3.2078,4660.2,4660.1,0.5717]
[1759763715957,3.70040753,4660.2,4660.1,1.4134]
[1759763716656,0.39353805,4660.2,4660.1,1.4134]
[1759763716862,0.002681,4660.2,4660.1,9.6212]
[1759763717267,1e-06,4660.2,4660.1,9.6212]
[1759763717561,3.2078,4661.3,4661.2,0.38601]
[1759763717766,3.2078,4661.3,4661.2,1.62831]
[1759763717968,3.5202,4661.3,4661.2,1.62831]
[1759763718357,0.3124,4661.3,4661.2,1.62831]
[1759763718558,0.31419065,4661.3,4661.2,1.62831]
[1759763719165,0.00179065,4661.3,4661.2,1.62831]
[1759763719465,4.2361,4661.8,4661.7,1.0578]
[1759763719664,0.4438,4661.7,4661.6,0.38597]
[1759763719872,0.4438,4661.6,4661.4,0.84819]
[1759763720169,1.0283,4661.5,4661.4,0.762]
[1759763720363,1.03088378,4661.5,4661.4,0.762]
[1759763720771,1.06041734,4661.5,4661.4,0.762]
[1759763723367,0.03211734,4661.5,4661.4,1.0578]
[1759763724171,0.03211734,4661.5,4661.4,6.0578]
[1759763724472,3.2078,4662.3,4662.2,1.44372]
[1759763724770,3.2078,4662.3,4662.2,1.65872]
[1759763725368,3.2097343,4662.3,4662.2,1.65872]
[1759763726666,3.5111343,4662.3,4662.2,1.65872]
[1759763727168,3.2097343,4662.3,4662.2,1.65872]
[1759763728070,0.38584,4663.2,4662.2,1.65872]
[1759763728071,3.2078,4663.9,4662.5,0.174]
[1759763728274,0.4438,4663.6,4662.8,1.44367]
[1759763728577,3.2078,4663.4,4662.8,1.44367]
[1759763728772,0.4438,4663.3,4662.8,1.44367]
[1759763728966,0.3234,4662.9,4662.8,1.44367]
[1759763729170,0.02455542,4662.9,4662.8,1.44572273]
[1759763729772,3.2078,4663.9,4663.8,0.98139]
[1759763729969,3.2078,4663.9,4663.8,0.2998]
[1759763729970,3.7923,4663.9,4663.8,0.2998]
[1759763730171,3.2078,4663.9,4663.8,1.0578]
[1759763730677,0.3014,4664.3,4664.2,1.44356]
[1759763730978,0.30398975,4664.3,4664.2,1.65856]
[1759763731278,0.00258975,4664.3,4664.2,1.65856]
[1759763731573,3.5092,4665.5,4665.4,1.0578]
[1759763731780,3.7923,4665.5,4665.4,1.0578]
[1759763732072,0.3014,4665.2,4665.1,41.18568]
[1759763732277,1.0283,4665.2,4665.1,41.64788]
[1759763732479,1.03046462,4665.2,4665.1,41.64788]
[1759763732770,1.03046462,4665.2,4665.1,1.0578]
[1759763733368,0.58666462,4665.2,4665.1,1.0578]
[1759763733568,0.00216462,4665.2,4665.1,1.0578]
[1759763734075,1.13124,4667.5,4666.4,1.44338]
[1759763734076,3.5092,4666.5,4666.4,1.44338]
[1759763734378,4.2361,4666.5,4666.4,1.2728]
[1759763734882,3.9733,4666.5,4665.7,0.4622]
[1759763735079,1.0283,4665.9,4665.8,0.2998]
[1759763735273,1.0283,4665.8,4665.7,0.00216152]
[1759763735673,1.0283,4665.8,4665.7,0.73006152]
[1759763735875,1.0283,4665.8,4665.7,0.00216152]
[1759763736475,6.0283,4665.8,4665.7,0.00216152]
[1759763736869,6.0283,4665.8,4665.0,0.38569]
[1759763736870,0.5832,4665.1,4665.0,0.38569]
[1759763737081,4.2516,4665.1,4665.0,0.7364]
[1759763737471,0.6343,4665.0,4664.8,0.215]
[1759763737675,1.0438,4664.6,4664.5,1.2081]
[1759763737871,3.6684,4665.1,4664.6,0.4281]
[1759763738076,3.2078,4665.1,4665.0,1.60139]
[1759763738477,3.4999,4665.1,4665.0,1.60139]
[1759763739676,4.2516,4665.1,4665.0,1.41979]
[1759763739876,4.2516,4665.1,4665.0,0.38569]
[1759763740078,4.2516,4665.1,4665.0,0.69399]
[1759763740276,4.2516,4665.1,4665.0,1.12209]
[1759763740680,3.791,4665.1,4664.9,0.3857]
[1759763740882,1.0438,4665.0,4664.9,0.3857]
[1759763741279,1.0438,4665.0,4664.9,1.1221]
[1759763741782,3.2078,4665.1,4664.9,1.1221]
[1759763741783,3.2078,4665.1,4665.0,1.2157]
[1759763742385,0.4606,4665.7,4665.0,1.2157]
[1759763742386,0.2921,4665.7,4665.6,1.41974]
[1759763742580,3.20973671,4666.5,4666.4,1.41968]
[1759763742880,3.20973671,4666.5,4666.4,1.63468]
[1759763743080,0.7527,4666.4,4666.3,0.38558]
[1759763743275,0.4606,4666.3,4666.2,0.38559]
[1759763743474,1.0438,4666.3,4665.9,0.4281]
[1759763743680,1.0438,4666.2,4666.1,0.7364]
[1759763743882,1.0438,4666.2,4666.1,1.0341]
[1759763744384,1.0438,4666.1,4666.0,0.38561]
[1759763744685,1.0438,4666.1,4666.0,1.12201]
[1759763744984,0.6343,4666.0,4665.8,0.38562]
[1759763745177,3.76900671,4666.5,4665.8,0.7364]
[1759763745178,4.2516,4665.9,4665.8,0.7364]
[1759763745384,1.0438,4666.4,4666.3,0.7364]
[1759763745582,1.0438,4666.4,4666.3,0.3083]
[1759763746181,0.5832,4666.4,4666.3,1.0341]
[1759763746390,0.00193671,4666.5,4666.4,1.41968]
[1759763746778,0.00193671,4666.5,4666.4,1.63468]
[1759763747884,3.2078,4667.3,4666.4,6.2491]
[1759763748083,3.4963,4667.3,4667.2,1.40511]
[1759763748283,3.52579408,4667.3,4667.2,1.40511]
[1759763748488,3.23729408,4667.3,4667.2,1.40511]
[1759763748991,3.23930995,4667.3,4667.2,1.40511]
[1759763751886,3.23930995,4667.3,4667.2,0.38551]
[1759763751887,1.05260995,4667.3,4667.2,0.38551]
[1759763752089,1.05260995,4667.3,4667.2,0.215]
[1759763752682,1.05260995,4667.3,4667.2,0.9279]
[1759763753286,1.52931581,4667.3,4667.2,0.7129]
[1759763753891,4.73711581,4667.3,4667.2,0.7129]
[1759763754592,0.5943,4666.6,4666.5,0.38557]
[1759763754792,1.0211,4666.6,4666.5,0.60057]
[1759763754980,1.0211,4666.6,4666.1,4.5903]
[1759763755185,1.0211,4666.4,4666.2,0.38559]
[1759763755386,1.52790397,4666.3,4666.2,0.38559]
[1759763757086,1.52790397,4666.3,4666.2,0.67999]
[1759763757688,1.52790397,4666.3,4666.2,1.09849]
[1759763757889,0.79530397,4666.3,4666.2,1.40519]
[1759763758089,0.50680397,4666.3,4666.2,1.40519]
[1759763758286,0.79530397,4666.3,4666.2,1.40519]
[1759763758996,1.52790397,4666.3,4666.2,1.40519]
[1759763759692,1.52790397,4666.3,4666.2,1.09849]
[1759763760392,1.52790397,4666.3,4666.2,1.40519]
[1759763760991,1.52790397,4666.3,4666.2,0.67999]
[1759763761196,1.52790397,4666.3,4666.2,1.09849]
[1759763761500,0.50680397,4666.3,4666.2,1.40519]
[1759763761796,0.50680397,4666.3,4666.2,1.62019]
[1759763763391,0.02949408,4666.3,4666.2,1.62019]
[1759763764389,0.02949408,4666.3,4666.2,42.42019]
[1759763764602,3.49831587,4667.3,4667.2,1.40511]
[1759763764898,3.97366548,4667.3,4667.2,1.62011]
[1759763765794,0.47736548,4667.3,4667.2,1.62011]
[1759763765993,0.47736548,4667.3,4667.2,6.62011]
[1759763766193,0.00201587,4667.3,4667.2,6.62011]
[1759763766392,0.00201587,4667.3,4667.2,47.42011]
[1759763768192,0.00201587,4667.3,4667.2,47.20511]
[1759763768394,0.00201587,4667.3,4667.2,47.42011]
[1759763768994,0.00201587,4667.3,4667.2,47.20511]
[1759763769192,0.00201587,4667.3,4667.2,47.42011]
[1759763771589,0.00201587,4667.3,4667.2,47.20511]
[1759763771800,0.42881587,4667.3,4667.2,42.42011]
[1759763772190,1.02311587,4667.3,4667.2,1.62011]
[1759763772598,0.29051587,4667.3,4667.2,1.62011]
[1759763773597,0.00201587,4667.3,4667.2,1.62011]
[1759763773797,0.29051587,4667.3,4667.2,1.62011]
[1759763774304,1.02311587,4667.3,4667.2,1.62011]
[1759763774996,1.02311587,4667.3,4667.2,1.40511]
[1759763775195,1.02311587,4667.3,4667.2,1.62011]
[1759763775396,1.49022758,4667.3,4667.2,1.62011]
[1759763776396,1.49022758,4667.3,4667.2,1.40511]
[1759763776801,1.49022758,4667.3,4667.2,1.62011]
[1759763778302,0.59631587,4667.3,4667.2,1.62011]
[1759763778700,1.02591587,4667.3,4667.2,1.62011]
[1759763782208,0.59631587,4667.3,4667.2,1.62011]
[1759763783110,0.00201587,4667.3,4667.2,1.62011]
[1759763785702,0.27381587,4667.3,4667.2,1.62011]
[1759763786310,0.98361587,4667.3,4667.2,1.62011]
[1759763786511,0.27381587,4667.3,4667.2,1.40511]
[1759763786714,0.00201587,4667.3,4667.2,1.62011]
[1759763787011,0.27381587,4667.3,4667.2,1.62011]
[1759763787604,0.00201587,4667.3,4667.2,1.62011]
[1759763788211,0.27381587,4667.3,4667.2,1.62011]
[1759763788515,0.00201587,4667.3,4667.2,1.62011]
[1759763789214,0.98361587,4667.3,4667.2,1.62011]
[1759763789410,0.27381587,4667.3,4667.2,1.62011]
[1759763790215,0.00201587,4667.3,4667.2,1.62011]
[1759763794416,0.2938,4667.9,4667.8,0.93906]
[1759763794714,0.76222749,4667.9,4667.8,1.57236]
[1759763795329,0.76425711,4667.9,4667.8,1.57437307]
[1759763795631,1.47215711,4667.9,4667.8,1.61677307]
[1759763795828,1.04445711,4667.9,4667.8,1.61677307]
[1759763797221,0.57602962,4667.9,4667.8,1.61677307]
[1759763797822,0.29582962,4667.9,4667.8,1.61677307]
[1759763798022,0.02402962,4667.9,4667.8,1.61677307]
[1759763800024,0.30652962,4667.9,4667.8,1.61677307]
[1759763801725,1.01182962,4667.9,4667.8,1.61677307]
[1759763802320,0.58412962,4667.9,4667.8,1.61677307]
[1759763802827,0.30652962,4667.9,4667.8,1.61677307]
[1759763804421,1.01182962,4667.9,4667.8,1.40177307]
[1759763804624,1.01182962,4667.9,4667.8,1.10287307]
[1759763805929,1.01182962,4667.9,4667.8,1.40177307]
[1759763806329,0.58412962,4667.9,4667.8,1.40177307]
[1759763807324,0.30652962,4667.9,4667.8,1.40177307]
[1759763807530,0.02402962,4667.9,4667.8,1.40177307]
[1759763808123,1.23182962,4668.1,4668.0,1.55574]
[1759763808323,2.67031503,4668.1,4668.0,1.55574]
[1759763808523,1.01048541,4668.1,4668.0,4.97854]
[1759763808725,0.73628541,4668.1,4668.0,4.97854]
[1759763809126,0.73859352,4668.1,4668.0,4.97854]
[1759763809828,0.47099352,4668.1,4668.0,4.97854]
[1759763810026,0.00230811,4668.1,4668.0,4.97854]
[1759763810720,0.47105001,4668.1,4668.0,4.97854]
[1759763811125,0.47114037,4668.1,4668.0,4.97854]
[1759763811927,0.00230811,4668.1,4668.0,4.97854]
[1759763813129,0.00230811,4668.1,4668.0,45.77854]
[1759763813330,0.9698,4669.5,4669.4,1.39113]
[1759763813630,1.43845488,4669.5,4669.4,1.39113]
[1759763814234,1.01223945,4669.5,4669.4,1.39113]
[1759763814537,0.47043945,4669.5,4669.4,1.39113]
[1759763814736,0.00178457,4669.5,4669.4,1.39113]
[1759763816134,0.97158457,4669.5,4669.4,1.0058]
[1759763816335,0.9698,4669.0,4668.9,3.7155]
[1759763816534,0.9698,4669.0,4668.9,4.2136]
[1759763816735,0.2676,4668.5,4668.4,0.38541]
[1759763816933,0.9698,4668.5,4668.4,0.7797]
[1759763817441,0.9698,4668.5,4668.4,1.2208]
[1759763818042,0.9698,4668.5,4668.4,1.0058]
[1759763818245,0.9698,4668.5,4668.4,1.2208]
[1759763818939,3.2078,4668.8,4668.7,1.39119]
[1759763819141,3.2078,4668.8,4668.7,1.60619]
[1759763819142,3.4754,4668.8,4668.7,1.60619]
[1759763820132,3.7496,4668.8,4668.5,0.8265]
[1759763820340,0.5418,4668.7,4668.6,1.2208]
[1759763820537,4.55528457,4669.5,4669.4,0.2927]
[1759763820744,4.21930387,4669.5,4669.4,1.0058]
[1759763821344,4.64730387,4669.5,4669.4,0.7338]
[1759763821532,4.64730387,4669.5,4669.3,0.38534]
[1759763821737,1.4377193,4669.4,4669.3,0.38534]
[1759763822036,1.4377193,4669.4,4669.3,1.39114]
[1759763822434,0.428,4669.1,4668.6,0.4411]
[1759763822733,3.63758457,4669.5,4669.4,0.38533]
[1759763823038,4.21925774,4669.5,4669.4,1.39113]
[1759763823839,0.73725774,4669.5,4669.4,1.39113]
[1759763824045,0.26938457,4669.5,4669.4,1.39113]
[1759763824540,0.00178457,4669.5,4669.4,1.39113]
[1759763825742,0.00178457,4669.5,4669.4,4.59893]
[1759763826237,0.26938457,4669.5,4669.4,4.59893]
[1759763826445,0.54358457,4669.5,4669.4,4.59893]
[1759763826634,0.97158457,4669.5,4669.4,1.60613]
[1759763827642,0.97158457,4669.5,4669.4,1.39113]
[1759763828038,0.97158457,4669.5,4669.4,1.60613]
[1759763828239,0.54358457,4669.5,4669.4,1.60613]
[1759763828437,0.00178457,4669.5,4669.4,1.39113]
[1759763828641,0.00178457,4669.5,4669.4,1.60613]
[1759763829036,0.00178457,4669.5,4669.4,1.39113]
[1759763829243,0.00178457,4669.5,4669.4,1.60613]
[1759763829435,0.00178457,4669.5,4669.4,1.39113]
[1759763829636,0.00178457,4669.5,4669.4,1.60613]
[1759763830248,0.00178457,4669.5,4669.4,4.81393]
[1759763830446,3.2078,4670.5,4670.4,0.94995]
[1759763830644,3.94135853,4670.5,4670.4,1.60605]
[1759763830840,1.00775853,4670.5,4670.4,1.60605]
[1759763831148,1.43575853,4670.5,4670.4,1.60605]
[1759763831555,1.43733051,4670.5,4670.4,1.60605]
[1759763831746,1.43733051,4670.5,4670.4,0.89295]
[1759763831947,1.43733051,4670.5,4670.4,0.2927]
[1759763832149,0.9698,4670.4,4670.3,0.38525]
[1759763832352,0.9698,4670.4,4670.3,0.67795]
[1759763832546,0.9698,4670.4,4670.3,1.11905]
[1759763833541,0.5418,4670.4,4669.8,41.2411]
[1759763833744,0.6956,4669.9,4669.8,41.2411]
[1759763833941,0.6956,4670.2,4670.1,1.39107]
[1759763834140,0.2676,4670.2,4670.1,1.39107]
[1759763834340,0.9698,4670.2,4670.1,1.39107]
[1759763835349,0.9698,4670.2,4670.1,1.60607]
[1759763835852,0.2676,4670.2,4670.1,1.60607]
[1759763836356,3.47697198,4670.5,4670.4,0.94995]
[1759763836553,3.94284005,4670.5,4670.4,1.39105]
[1759763836853,4.21704005,4670.5,4670.4,1.39105]
[1759763837055,4.64504005,4670.5,4670.4,1.39105]
[1759763837258,4.81194005,4670.5,4670.4,0.38525]
[1759763837855,0.9466,4670.2,4670.1,1.33407]
[1759763838942,0.9466,4670.2,4670.1,1.60227]
[1759763840450,0.958,4670.3,4670.2,1.35096]
[1759763841452,0.958,4670.3,4670.2,0.9657]
[1759763841656,1.42436301,4670.3,4670.2,0.6975]
[1759763841958,0.958,4670.0,4669.9,0.38529]
[1759763842258,4.1658,4670.0,4669.9,1.08279]
[1759763842446,3.761,4670.0,4669.9,1.35099]
[1759763842650,3.95033152,4670.0,4669.9,1.35099]
[1759763842953,3.2078,4670.0,4669.9,1.35099]
[1759763843553,3.4838,4670.0,4669.9,1.35099]
[1759763844552,4.1658,4670.0,4669.9,1.35099]
[1759763844958,3.761,4670.0,4669.9,1.35099]
[1759763845259,3.2078,4670.0,4669.9,1.35099]
[1759763845648,0.55477198,4670.5,4670.4,0.93855]
[1759763845847,1.02141725,4670.5,4670.4,1.35095]
[1759763846754,0.74421725,4670.5,4670.4,1.35095]
[1759763847153,1.42621725,4670.5,4670.4,1.35095]
[1759763847458,1.59491725,4670.5,4670.3,0.38525]
[1759763847658,1.42464527,4670.4,4670.3,0.38525]
[1759763847960,1.42464527,4670.4,4670.3,0.79765]
[1759763848257,1.42464527,4670.4,4670.3,1.08275]
[1759763849154,1.42464527,4670.4,4670.3,0.38525]
[1759763851354,0.74264527,4670.4,4670.3,1.35095]